fUST/lending_fUST_20250530
["ID","MTS","AMOUNT","RATE_DAILY","PERIOD"]
[363068533,1748566243392,-430.0,0.00019726,2]
[363068534,1748566243401,-430.0,0.00019726,2]
[363068535,1748566243410,-430.0,0.00019726,2]
[363068536,1748566243419,-430.0,0.00019726,2]
[363068537,1748566243428,-268.97724972,0.00019726,2]
[363068538,1748566243437,-430.0,0.00019726,2]
[363068539,1748566243446,-430.0,0.00019726,2]
[363068540,1748566243455,-430.0,0.00019726,2]
[363068553,1748566243583,-430.0,0.00019726,2]
[363068555,1748566243593,-430.0,0.00019726,2]
[363068557,1748566243603,-430.0,0.00019726,2]
[363068559,1748566243612,-430.0,0.00019726,2]
[363068561,1748566243624,-430.0,0.00019726,2]
[363068563,1748566243634,-430.0,0.00019726,2]
[363068564,1748566243644,-430.0,0.00019726,2]
[363068566,1748566243653,-612.13,0.00019726,2]
[363068568,1748566243663,-430.0,0.00019726,2]
[363068570,1748566243672,-430.0,0.00019726,2]
[363068572,1748566243681,-430.0,0.00019726,2]
[363068574,1748566243691,-430.0,0.00019726,2]
[363068576,1748566243700,-430.0,0.00019726,2]
[363068578,1748566243709,-430.0,0.00019726,2]
[363068580,1748566243719,-430.0,0.00019726,2]
[363068582,1748566243728,-758.53,0.00019726,2]
[363068584,1748566243737,-430.0,0.00019726,2]
[363068586,1748566243746,-430.0,0.00019726,2]
[363068588,1748566243755,-430.0,0.00019726,2]
[363068590,1748566243764,-688.03,0.00019726,2]
[363068592,1748566243772,-430.0,0.00019726,2]
[363068594,1748566243781,-536.28,0.00019726,2]
[363068596,1748566243790,-430.0,0.00019726,2]
[363068598,1748566243798,-430.0,0.00019726,2]
[363068600,1748566243808,-430.0,0.00019726,2]
[363068602,1748566243817,-430.0,0.00019726,2]
[363068604,1748566243826,-460.0,0.00019726,2]
[363068606,1748566243835,-550.23,0.00019726,2]
[363068608,1748566243844,-430.0,0.00019726,2]
[363068610,1748566243853,-430.0,0.00019726,2]
[363068612,1748566243862,-430.0,0.00019726,2]
[363068614,1748566243873,-678.02767498,0.00019876,2]
[363068616,1748566243883,-500.0,0.00019903,2]
[363068618,1748566243893,-834.0,0.0002,2]
[363068620,1748566243903,-315.31411708,0.0002,2]
[363068622,1748566243912,-430.0,0.0002,2]
[363068624,1748566243921,-430.0,0.0002,2]
[363068626,1748566243932,-430.0,0.0002,2]
[363068627,1748566243942,-430.0,0.0002,2]
[363068630,1748566243952,-430.0,0.0002,2]
[363068632,1748566243962,-430.0,0.0002,2]
[363068634,1748566243971,-430.0,0.0002,2]
[363068636,1748566243982,-961.64,0.0002,2]
[363068638,1748566243991,-1021.24,0.0002,2]
[363068640,1748566244000,-406.19822945,0.0002,2]
[363068642,1748566244008,-430.0,0.0002,2]
[363068644,1748566244017,-430.0,0.0002,2]
[363068645,1748566244026,-430.0,0.0002,2]
[363068648,1748566244036,-614.42,0.0002,2]
[363068649,1748566244046,-538.74,0.0002,2]
[363068651,1748566244055,-430.0,0.0002,2]
[363068653,1748566244065,-430.0,0.0002,2]
[363068655,1748566244074,-495.45174444,0.0002,2]
[363068657,1748566244084,-152.15,0.0002,2]
[363068659,1748566244094,-430.0,0.0002,2]
[363068661,1748566244104,-430.0,0.0002,2]
[363068663,1748566244114,-432.6,0.0002,2]
[363068665,1748566244123,-1700.68,0.0002,2]
[363068667,1748566244135,-430.0,0.0002,2]
[363068669,1748566244145,-430.0,0.0002,2]
[363068671,1748566244154,-430.0,0.0002,2]
[363068674,1748566244164,-430.0,0.0002,2]
[363068676,1748566244173,-430.0,0.0002,2]
[363068678,1748566244183,-430.0,0.0002,2]
[363068680,1748566244192,-430.0,0.0002,2]
[363068682,1748566244202,-430.0,0.0002,2]
[363068684,1748566244212,-960.46,0.0002,2]
[363068685,1748566244221,-430.0,0.0002,2]
[363068687,1748566244231,-1200.78,0.0002,2]
[363068689,1748566244240,-960.21,0.0002,2]
[363068691,1748566244249,-289.06,0.0002,2]
[363068693,1748566244258,-3001.0,0.0002,2]
[363068695,1748566244267,-3001.0,0.0002,2]
[363068697,1748566244277,-3001.0,0.0002,2]
[363068699,1748566244286,-3001.0,0.0002,2]
[363068701,1748566244296,-3001.0,0.0002,2]
[363068704,1748566244305,-3001.0,0.0002,2]
[363068706,1748566244316,-1011.91,0.0002,2]
[363068708,1748566244325,-3001.0,0.0002,2]
[363068710,1748566244335,-3001.0,0.0002,2]
[363068712,1748566244344,-3001.0,0.0002,2]
[363068713,1748566244354,-3001.0,0.0002,2]
[363068715,1748566244365,-430.0,0.0002,2]
[363068718,1748566244374,-430.0,0.0002,2]
[363068720,1748566244384,-1032.95,0.0002,2]
[363068721,1748566244393,-430.0,0.0002,2]
[363068723,1748566244404,-430.0,0.0002,2]
[363068725,1748566244413,-430.0,0.0002,2]
[363068727,1748566244423,-689.73,0.0002,2]
[363068729,1748566244432,-1315.76,0.0002,2]
[363068731,1748566244441,-497.12,0.0002,2]
[363068733,1748566244450,-804.44,0.0002,2]
[363068735,1748566244459,-430.0,0.0002,2]
[363068737,1748566244468,-430.0,0.0002,2]
[363068739,1748566244478,-430.0,0.0002,2]
[363068741,1748566244487,-430.0,0.0002,2]
[363068743,1748566244497,-430.0,0.0002,2]
[363068745,1748566244506,-430.0,0.0002,2]
[363068747,1748566244515,-375.90517438,0.0002,2]
[363068749,1748566244525,-430.0,0.0002,2]
[363068751,1748566244535,-430.0,0.0002,2]
[363068753,1748566244544,-430.0,0.0002,2]
[363068755,1748566244553,-430.0,0.0002,2]
[363068757,1748566244562,-612.13,0.0002,2]
[363068759,1748566244571,-430.0,0.0002,2]
[363068761,1748566244582,-430.0,0.0002,2]
[363068763,1748566244592,-430.0,0.0002,2]
[363068765,1748566244601,-430.0,0.0002,2]
[363068767,1748566244611,-430.0,0.0002,2]
[363068769,1748566244623,-430.0,0.0002,2]
[363068771,1748566244631,-758.53,0.0002,2]
[363068773,1748566244641,-430.0,0.0002,2]
[363068775,1748566244650,-430.0,0.0002,2]
[363068777,1748566244661,-430.0,0.0002,2]
[363068779,1748566244671,-688.03,0.0002,2]
[363068781,1748566244680,-430.0,0.0002,2]
[363068783,1748566244690,-430.0,0.0002,2]
[363068785,1748566244699,-470.0,0.0002,2]
[363068787,1748566244709,-430.0,0.0002,2]
[363068789,1748566244718,-550.23,0.0002,2]
[363068791,1748566244727,-430.0,0.0002,2]
[363068793,1748566244736,-430.0,0.0002,2]
[363068795,1748566244745,-430.0,0.0002,2]
[363068797,1748566244754,-1004.374185,0.00020187,2]
[363068799,1748566244764,-430.0,0.00020273,2]
[363068801,1748566244773,-430.0,0.00020273,2]
[363068803,1748566244782,-430.0,0.00020273,2]
[363068805,1748566244791,-430.0,0.00020273,2]
[363068807,1748566244799,-430.0,0.00020273,2]
[363068809,1748566244808,-430.0,0.00020273,2]
[363068811,1748566244816,-961.64,0.00020273,2]
[363068813,1748566244825,-1021.24,0.00020273,2]
[363068815,1748566244833,-430.0,0.00020273,2]
[363068817,1748566244843,-430.0,0.00020273,2]
[363068819,1748566244852,-430.0,0.00020273,2]
[363068821,1748566244861,-614.42,0.00020273,2]
[363068823,1748566244872,-538.74,0.00020273,2]
[363068825,1748566244881,-430.0,0.00020273,2]
[363068827,1748566244891,-430.0,0.00020273,2]
[363068829,1748566244900,-430.0,0.00020273,2]
[363068831,1748566244910,-1700.68,0.00020273,2]
[363068833,1748566244919,-430.0,0.00020273,2]
[363068835,1748566244928,-430.0,0.00020273,2]
[363068837,1748566244937,-430.0,0.00020273,2]
[363068839,1748566244946,-430.0,0.00020273,2]
[363068841,1748566244955,-430.0,0.00020273,2]
[363068843,1748566244965,-430.0,0.00020273,2]
[363068845,1748566244974,-430.0,0.00020273,2]
[363068847,1748566244983,-960.46,0.00020273,2]
[363068849,1748566244993,-430.0,0.00020273,2]
[363068851,1748566245002,-1200.78,0.00020273,2]
[363068853,1748566245012,-960.21,0.00020273,2]
[363068855,1748566245021,-1011.91,0.00020273,2]
[363068857,1748566245030,-456.21,0.00020273,2]
[363068859,1748566245039,-430.0,0.00020273,2]
[363068861,1748566245048,-1032.95,0.00020273,2]
[363068863,1748566245058,-415.04,0.00020273,2]
[363068864,1748566245067,-434.10630352,0.00020273,2]
[363068866,1748566245076,-689.73,0.00020273,2]
[363068868,1748566245086,-1315.76,0.00020273,2]
[363068870,1748566245095,-497.12,0.00020273,2]
[363068872,1748566245104,-804.44,0.00020273,2]
[363068874,1748566245113,-430.0,0.00020273,2]
[363068876,1748566245123,-430.0,0.00020273,2]
[363068878,1748566245133,-430.0,0.00020273,2]
[363068880,1748566245142,-430.0,0.00020273,2]
[363068882,1748566245153,-430.0,0.00020273,2]
[363068884,1748566245162,-430.0,0.00020273,2]
[363068886,1748566245170,-430.0,0.00020273,2]
[363068888,1748566245180,-430.0,0.00020273,2]
[363068890,1748566245189,-430.0,0.00020273,2]
[363068892,1748566245199,-612.13,0.00020273,2]
[363068894,1748566245208,-430.0,0.00020273,2]
[363068896,1748566245217,-430.0,0.00020273,2]
[363068898,1748566245227,-430.0,0.00020273,2]
[363068900,1748566245236,-430.0,0.00020273,2]
[363068902,1748566245245,-430.0,0.00020273,2]
[363068904,1748566245255,-430.0,0.00020273,2]
[363068906,1748566245264,-758.53,0.00020273,2]
[363068908,1748566245274,-430.0,0.00020273,2]
[363068910,1748566245283,-560.95,0.00020273,2]
[363068912,1748566245292,-430.0,0.00020273,2]
[363068914,1748566245301,-688.03,0.00020273,2]
[363068916,1748566245311,-430.0,0.00020273,2]
[363068918,1748566245321,-430.0,0.00020273,2]
[363068920,1748566245331,-164.86988329,0.00020273,2]
[363068922,1748566245340,-550.23,0.00020273,2]
[363068924,1748566245350,-430.0,0.00020273,2]
[363068926,1748566245359,-430.0,0.00020273,2]
[363068928,1748566245370,-163.13181784,0.00020273,2]
[363068930,1748566245378,-396.919,0.00020327,2]
[363068932,1748566245387,-12660.97845086,0.00020355,2]
[363068934,1748566245397,-160.0,0.00020365,2]
[363068936,1748566245406,-160.0,0.00020365,2]
[363068938,1748566245415,-229.26895353,0.00020365,2]
[363068940,1748566245424,-160.0,0.00020365,2]
[363068942,1748566245433,-212.70147903,0.00020365,2]
[363068944,1748566245442,-842.5625,0.00020365,2]
[363068946,1748566245451,-423.31762986,0.00020365,2]
[363068948,1748566245460,-160.0,0.00020365,2]
[363068950,1748566245469,-236.85360425,0.00020447,2]
[363068952,1748566245479,-1000.0,0.00020451,2]
[363068954,1748566245488,-430.0,0.00020547,2]
[363068956,1748566245497,-430.0,0.00020547,2]
[363068958,1748566245506,-430.0,0.00020547,2]
[363068960,1748566245516,-430.0,0.00020547,2]
[363068962,1748566245524,-430.0,0.00020547,2]
[363068964,1748566245533,-430.0,0.00020547,2]
[363068967,1748566245554,-961.64,0.00020547,2]
[363068970,1748566245564,-1021.24,0.00020547,2]
[363068972,1748566245573,-430.0,0.00020547,2]
[363068974,1748566245584,-430.0,0.00020547,2]
[363068976,1748566245595,-614.42,0.00020547,2]
[363068978,1748566245605,-538.74,0.00020547,2]
[363068980,1748566245617,-430.0,0.00020547,2]
[363068982,1748566245627,-430.0,0.00020547,2]
[363068984,1748566245636,-430.0,0.00020547,2]
[363068986,1748566245645,-1700.68,0.00020547,2]
[363068988,1748566245655,-430.0,0.00020547,2]
[363068991,1748566245665,-430.0,0.00020547,2]
[363068994,1748566245676,-430.0,0.00020547,2]
[363068997,1748566245686,-430.0,0.00020547,2]
[363069000,1748566245696,-430.0,0.00020547,2]
[363069003,1748566245705,-430.0,0.00020547,2]
[363069006,1748566245714,-430.0,0.00020547,2]
[363069009,1748566245724,-960.46,0.00020547,2]
[363069012,1748566245734,-430.0,0.00020547,2]
[363069015,1748566245744,-1200.78,0.00020547,2]
[363069017,1748566245754,-960.21,0.00020547,2]
[363069019,1748566245763,-1011.91,0.00020547,2]
[363069021,1748566245773,-430.0,0.00020547,2]
[363069024,1748566245782,-1032.95,0.00020547,2]
[363069026,1748566245792,-689.73,0.00020547,2]
[363069028,1748566245801,-1315.76,0.00020547,2]
[363069030,1748566245810,-497.12,0.00020547,2]
[363069032,1748566245819,-804.44,0.00020547,2]
[363069035,1748566245829,-320.85,0.00020547,2]
[363069038,1748566245839,-430.0,0.00020547,2]
[363069041,1748566245850,-430.0,0.00020547,2]
[363069044,1748566245860,-430.0,0.00020547,2]
[363069046,1748566245871,-430.0,0.00020547,2]
[363069048,1748566245880,-232.96,0.00020547,2]
[363069050,1748566245890,-174.41272146,0.00020547,2]
[363069052,1748566245899,-430.0,0.00020547,2]
[363069054,1748566245910,-430.0,0.00020547,2]
[363069063,1748566245919,-612.13,0.00020547,2]
[363069065,1748566245988,-430.0,0.00020547,2]
[363069067,1748566245997,-430.0,0.00020547,2]
[363069069,1748566246006,-430.0,0.00020547,2]
[363069071,1748566246015,-430.0,0.00020547,2]
[363069073,1748566246025,-430.0,0.00020547,2]
[363069075,1748566246034,-430.0,0.00020547,2]
[363069077,1748566246043,-758.53,0.00020547,2]
[363069079,1748566246052,-430.0,0.00020547,2]
[363069081,1748566246061,-688.03,0.00020547,2]
[363069083,1748566246072,-430.0,0.00020547,2]
[363069085,1748566246081,-550.23,0.00020547,2]
[363069087,1748566246090,-430.0,0.00020547,2]
[363069089,1748566246099,-430.0,0.00020547,2]
[363069091,1748566246108,-678.02767498,0.00020675,2]
[363069093,1748566246118,-430.0,0.00020821,2]
[363069095,1748566246128,-430.0,0.00020821,2]
[363069097,1748566246137,-430.0,0.00020821,2]
[363069099,1748566246147,-430.0,0.00020821,2]
[363069101,1748566246155,-430.0,0.00020821,2]
[363069103,1748566246164,-430.0,0.00020821,2]
[363069105,1748566246173,-961.64,0.00020821,2]
[363069107,1748566246183,-1021.24,0.00020821,2]
[363069109,1748566246191,-430.0,0.00020821,2]
[363069111,1748566246200,-430.0,0.00020821,2]
[363069113,1748566246210,-614.42,0.00020821,2]
[363069114,1748566246219,-538.74,0.00020821,2]
[363069117,1748566246229,-430.0,0.00020821,2]
[363069119,1748566246239,-420.8843019,0.00020821,2]
[363069121,1748566246248,-430.0,0.00020821,2]
[363069123,1748566246256,-1700.68,0.00020821,2]
[363069125,1748566246266,-430.0,0.00020821,2]
[363069127,1748566246275,-554.33519004,0.00020821,2]
[363069129,1748566246283,-430.0,0.00020821,2]
[363069131,1748566246292,-430.0,0.00020821,2]
[363069133,1748566246300,-430.0,0.00020821,2]
[363069135,1748566246310,-430.0,0.00020821,2]
[363069137,1748566246319,-430.0,0.00020821,2]
[363069139,1748566246328,-960.46,0.00020821,2]
[363069141,1748566246337,-430.0,0.00020821,2]
[363069143,1748566246346,-1200.78,0.00020821,2]
[363069145,1748566246355,-960.21,0.00020821,2]
[363069147,1748566246364,-1011.91,0.00020821,2]
[363069148,1748566246376,-430.0,0.00020821,2]
[363069151,1748566246386,-1032.95,0.00020821,2]
[363069152,1748566246395,-689.73,0.00020821,2]
[363069155,1748566246405,-1315.76,0.00020821,2]
[363069157,1748566246414,-497.12,0.00020821,2]
[363069159,1748566246423,-804.44,0.00020821,2]
[363069161,1748566246432,-430.0,0.00020821,2]
[363069163,1748566246442,-430.0,0.00020821,2]
[363069164,1748566246451,-430.0,0.00020821,2]
[363069166,1748566246460,-430.0,0.00020821,2]
[363069168,1748566246469,-430.0,0.00020821,2]
[363069171,1748566246479,-612.13,0.00020821,2]
[363069173,1748566246488,-430.0,0.00020821,2]
[363069175,1748566246498,-227.49,0.00020821,2]
[363069177,1748566246507,-430.0,0.00020821,2]
[363069179,1748566246517,-430.0,0.00020821,2]
[363069181,1748566246526,-383.27378205,0.00020821,2]
[363069183,1748566246536,-430.0,0.00020821,2]
[363069185,1748566246546,-758.53,0.00020821,2]
[363069187,1748566246555,-430.0,0.00020821,2]
[363069189,1748566246565,-688.03,0.00020821,2]
[363069191,1748566246574,-430.0,0.00020821,2]
[363069193,1748566246586,-550.23,0.00020821,2]
[363069195,1748566246596,-430.0,0.00020821,2]
[363069198,1748566246605,-430.0,0.00020821,2]
[363069201,1748566246618,-420.0,0.00020899,2]
[363069204,1748566246629,-842.85094281,0.000209,4]
[363069206,1748566246638,-500.0,0.00020963,2]
[363069208,1748566246647,-842.85094271,0.00021038,4]
[363069210,1748566246656,-430.0,0.00021095,2]
[363069212,1748566246667,-430.0,0.00021095,2]
[363069214,1748566246677,-430.0,0.00021095,2]
[363069216,1748566246686,-430.0,0.00021095,2]
[363069218,1748566246695,-430.0,0.00021095,2]
[363069220,1748566246705,-430.0,0.00021095,2]
[363069222,1748566246714,-961.64,0.00021095,2]
[363069224,1748566246723,-1021.24,0.00021095,2]
[363069226,1748566246732,-430.0,0.00021095,2]
[363069228,1748566246742,-430.0,0.00021095,2]
[363069230,1748566246752,-614.42,0.00021095,2]
[363069232,1748566246762,-538.74,0.00021095,2]
[363069234,1748566246771,-430.0,0.00021095,2]
[363069236,1748566246781,-430.0,0.00021095,2]
[363069238,1748566246791,-1700.68,0.00021095,2]
[363069240,1748566246800,-430.0,0.00021095,2]
[363069243,1748566246810,-430.0,0.00021095,2]
[363069245,1748566246820,-430.0,0.00021095,2]
[363069247,1748566246830,-430.0,0.00021095,2]
[363069249,1748566246840,-430.0,0.00021095,2]
[363069251,1748566246849,-430.0,0.00021095,2]
[363069253,1748566246859,-960.46,0.00021095,2]
[363069255,1748566246871,-430.0,0.00021095,2]
[363069257,1748566246880,-1200.78,0.00021095,2]
[363069259,1748566246889,-960.21,0.00021095,2]
[363069261,1748566246899,-1011.91,0.00021095,2]
[363069263,1748566246909,-430.0,0.00021095,2]
[363069265,1748566246919,-1032.95,0.00021095,2]
[363069267,1748566246928,-689.73,0.00021095,2]
[363069269,1748566246937,-1315.76,0.00021095,2]
[363069271,1748566246947,-497.12,0.00021095,2]
[363069273,1748566246957,-804.44,0.00021095,2]
[363069275,1748566246966,-430.0,0.00021095,2]
[363069277,1748566246976,-430.0,0.00021095,2]
[363069279,1748566246985,-430.0,0.00021095,2]
[363069281,1748566246995,-430.0,0.00021095,2]
[363069283,1748566247004,-612.13,0.00021095,2]
[363069285,1748566247014,-430.0,0.00021095,2]
[363069287,1748566247024,-430.0,0.00021095,2]
[363069289,1748566247033,-239.16964589,0.00021095,2]
[363069291,1748566247043,-430.0,0.00021095,2]
[363069293,1748566247053,-758.53,0.00021095,2]
[363069295,1748566247064,-688.03,0.00021095,2]
[363069297,1748566247073,-430.0,0.00021095,2]
[363069299,1748566247083,-550.23,0.00021095,2]
[363069301,1748566247093,-430.0,0.00021095,2]
[363069303,1748566247103,-430.0,0.00021095,2]
[363069305,1748566247112,-842.85094271,0.00021176,4]
[363069307,1748566247127,-236.85360421,0.0002126,2]
[363069310,1748566247137,-842.85094271,0.00021314,5]
[363069312,1748566247148,-430.0,0.00021369,2]
[363069314,1748566247157,-430.0,0.00021369,2]
[363069316,1748566247167,-430.0,0.00021369,2]
[363069318,1748566247176,-430.0,0.00021369,2]
[363069320,1748566247186,-499.34,0.00021369,2]
[363069322,1748566247196,-430.0,0.00021369,2]
[363069324,1748566247206,-961.64,0.00021369,2]
[363069326,1748566247216,-1021.24,0.00021369,2]
[363069328,1748566247226,-430.0,0.00021369,2]
[363069330,1748566247236,-430.0,0.00021369,2]
[363069332,1748566247245,-614.42,0.00021369,2]
[363069334,1748566247254,-538.74,0.00021369,2]
[363069336,1748566247264,-430.0,0.00021369,2]
[363069339,1748566247274,-430.0,0.00021369,2]
[363069341,1748566247284,-1700.68,0.00021369,2]
[363069343,1748566247294,-430.0,0.00021369,2]
[363069345,1748566247303,-430.0,0.00021369,2]
[363069346,1748566247312,-430.0,0.00021369,2]
[363069349,1748566247322,-430.0,0.00021369,2]
[363069351,1748566247331,-430.0,0.00021369,2]
[363069352,1748566247340,-430.0,0.00021369,2]
[363069354,1748566247350,-960.46,0.00021369,2]
[363069356,1748566247359,-430.0,0.00021369,2]
[363069358,1748566247373,-1200.78,0.00021369,2]
[363069360,1748566247382,-960.21,0.00021369,2]
[363069362,1748566247392,-1011.91,0.00021369,2]
[363069364,1748566247401,-1032.95,0.00021369,2]
[363069366,1748566247411,-689.73,0.00021369,2]
[363069368,1748566247421,-1315.76,0.00021369,2]
[363069370,1748566247431,-497.12,0.00021369,2]
[363069373,1748566247440,-804.44,0.00021369,2]
[363069374,1748566247450,-430.0,0.00021369,2]
[363069377,1748566247460,-430.0,0.00021369,2]
[363069378,1748566247470,-430.0,0.00021369,2]
[363069381,1748566247479,-430.0,0.00021369,2]
[363069383,1748566247489,-612.13,0.00021369,2]
[363069385,1748566247499,-430.0,0.00021369,2]
[363069387,1748566247509,-430.0,0.00021369,2]
[363069389,1748566247520,-430.0,0.00021369,2]
[363069391,1748566247530,-758.53,0.00021369,2]
[363069393,1748566247539,-688.03,0.00021369,2]
[363069395,1748566247549,-471.47,0.00021369,2]
[363069397,1748566247559,-550.23,0.00021369,2]
[363069399,1748566247569,-430.0,0.00021369,2]
[363069401,1748566247580,-430.0,0.00021369,2]
[363069403,1748566247592,-300.0,0.00021429,2]
[363069405,1748566247602,-300.0,0.00021429,2]
[363069407,1748566247611,-300.0,0.00021429,2]
[363069409,1748566247623,-207.4,0.00021429,2]
[363069411,1748566247633,-300.0,0.00021429,2]
[363069413,1748566247643,-300.0,0.00021429,2]
[363069415,1748566247653,-300.0,0.00021429,2]
[363069417,1748566247663,-300.0,0.00021429,2]
[363069419,1748566247673,-300.0,0.00021429,2]
[363069421,1748566247683,-300.0,0.00021429,2]
[363069423,1748566247692,-300.0,0.00021429,2]
[363069425,1748566247702,-300.0,0.00021429,2]
[363069427,1748566247712,-300.0,0.00021429,2]
[363069429,1748566247722,-300.0,0.00021429,2]
[363069431,1748566247731,-300.0,0.00021429,2]
[363069433,1748566247741,-300.0,0.00021429,2]
[363069435,1748566247751,-842.85094271,0.00021452,5]
[363069437,1748566247761,-678.02767498,0.00021473,2]
[363069439,1748566247771,-842.85094271,0.0002159,5]
[363069441,1748566247781,-430.0,0.00021643,2]
[363069443,1748566247790,-266.7984993,0.00021643,2]
[363069445,1748566247800,-430.0,0.00021643,2]
[363069447,1748566247810,-430.0,0.00021643,2]
[363069450,1748566247819,-430.0,0.00021643,2]
[363069452,1748566247829,-961.64,0.00021643,2]
[363069454,1748566247839,-1021.24,0.00021643,2]
[363069456,1748566247849,-430.0,0.00021643,2]
[363069458,1748566247859,-430.0,0.00021643,2]
[363069460,1748566247871,-614.42,0.00021643,2]
[363069462,1748566247881,-538.74,0.00021643,2]
[363069464,1748566247892,-430.0,0.00021643,2]
[363069466,1748566247901,-430.0,0.00021643,2]
[363069468,1748566247911,-1700.68,0.00021643,2]
[363069470,1748566247921,-430.0,0.00021643,2]
[363069472,1748566247930,-430.0,0.00021643,2]
[363069474,1748566247940,-430.0,0.00021643,2]
[363069476,1748566247949,-430.0,0.00021643,2]
[363069478,1748566247959,-430.0,0.00021643,2]
[363069480,1748566247969,-430.0,0.00021643,2]
[363069482,1748566247979,-960.46,0.00021643,2]
[363069484,1748566247988,-430.0,0.00021643,2]
[363069486,1748566247997,-1200.78,0.00021643,2]
[363069488,1748566248007,-960.21,0.00021643,2]
[363069490,1748566248016,-1011.91,0.00021643,2]
[363069492,1748566248026,-1032.95,0.00021643,2]
[363069494,1748566248035,-689.73,0.00021643,2]
[363069496,1748566248045,-1315.76,0.00021643,2]
[363069498,1748566248055,-497.12,0.00021643,2]
[363069500,1748566248064,-804.44,0.00021643,2]
[363069502,1748566248074,-430.0,0.00021643,2]
[363069504,1748566248084,-430.0,0.00021643,2]
[363069506,1748566248094,-430.0,0.00021643,2]
[363069508,1748566248103,-430.0,0.00021643,2]
[363069510,1748566248113,-612.13,0.00021643,2]
[363069512,1748566248125,-150.69,0.00021643,2]
[363069514,1748566248135,-430.0,0.00021643,2]
[363069516,1748566248146,-430.0,0.00021643,2]
[363069518,1748566248156,-758.53,0.00021643,2]
[363069520,1748566248167,-688.03,0.00021643,2]
[363069522,1748566248177,-550.23,0.00021643,2]
[363069524,1748566248189,-430.0,0.00021643,2]
[363069526,1748566248199,-430.0,0.00021643,2]
[363069528,1748566248209,-842.85094271,0.00021728,5]
[363069530,1748566248219,-500.0,0.00021789,2]
[363069532,1748566248229,-842.85094271,0.00021866,6]
[363069534,1748566248239,-430.0,0.00021917,2]
[363069536,1748566248248,-430.0,0.00021917,2]
[363069538,1748566248258,-430.0,0.00021917,2]
[363069540,1748566248268,-430.0,0.00021917,2]
[363069542,1748566248278,-961.64,0.00021917,2]
[363069544,1748566248288,-1021.24,0.00021917,2]
[363069546,1748566248297,-430.0,0.00021917,2]
[363069548,1748566248306,-430.0,0.00021917,2]
[363069550,1748566248316,-614.42,0.00021917,2]
[363069552,1748566248325,-538.74,0.00021917,2]
[363069554,1748566248335,-430.0,0.00021917,2]
[363069556,1748566248345,-430.0,0.00021917,2]
[363069558,1748566248355,-1700.68,0.00021917,2]
[363069560,1748566248367,-430.0,0.00021917,2]
[363069562,1748566248377,-430.0,0.00021917,2]